fUSD/lending_fUSD_20240328
["ID","MTS","AMOUNT","RATE_DAILY","PERIOD"]
[320829706,1711587051083,-500.0,0.00054779,120]
[320829707,1711587051094,-500.0,0.00054779,120]
[320829708,1711587051104,-501.95,0.00054779,120]
[320829709,1711587051113,-500.0,0.00054779,120]
[320829710,1711587051123,-500.0,0.00054779,120]
[320829711,1711587051134,-612.02760003,0.00054779,120]
[320829712,1711587051143,-500.0,0.00054779,120]
[320829713,1711587051153,-500.0,0.00054779,120]
[320829714,1711587051162,-500.0,0.00054779,120]
[320829715,1711587051172,-500.0,0.00054779,120]
[320829716,1711587051181,-552.48,0.00054779,120]
[320829717,1711587051191,-500.0,0.00054779,120]
[320829718,1711587051200,-1018.48,0.00054779,120]
[320829719,1711587051209,-1058.91,0.00054779,120]
[320829720,1711587051218,-301.04060939,0.00054779,2]
[320829721,1711587051231,-500.0,0.00054779,120]
[320829722,1711587051241,-500.0,0.00054779,120]
[320829723,1711587051352,-656.77,0.00054779,120]
[320829724,1711587051362,-500.0,0.00054779,120]
[320829725,1711587051372,-500.0,0.00054779,120]
[320829726,1711587051385,-500.0,0.00054779,120]
[320829727,1711587051394,-500.0,0.00054779,120]
[320829728,1711587051403,-559.8,0.00054779,120]
[320829729,1711587051413,-500.0,0.00054779,120]
[320829730,1711587051422,-500.0,0.00054779,120]
[320829731,1711587051431,-500.0,0.00054779,120]
[320829732,1711587051441,-500.0,0.00054779,120]
[320829733,1711587051450,-500.0,0.00054779,120]
[320829734,1711587051461,-500.0,0.00054779,120]
[320829735,1711587051470,-1054.79,0.00054779,120]
[320829736,1711587051480,-500.0,0.00054779,120]
[320829737,1711587051490,-500.0,0.00054779,120]
[320829738,1711587051500,-500.0,0.00054779,120]
[320829739,1711587051510,-500.0,0.00054779,120]
[320829740,1711587051520,-500.0,0.00054779,120]
[320829741,1711587051529,-623.15,0.00054779,120]
[320829742,1711587051539,-500.0,0.00054779,120]
[320829743,1711587051549,-870.03,0.00054779,120]
[320829744,1711587051559,-500.0,0.00054779,120]
[320829745,1711587051569,-500.0,0.00054779,120]
[320829746,1711587051578,-500.0,0.00054779,120]
[320829747,1711587051588,-500.0,0.00054779,120]
[320829748,1711587051597,-606.59,0.00054779,120]
[320829749,1711587051607,-500.0,0.00054779,120]
[320829750,1711587051617,-500.0,0.00054779,120]
[320829751,1711587051628,-500.0,0.00054779,120]
[320829752,1711587051637,-500.0,0.00054779,120]
[320829753,1711587051646,-917.4,0.00054779,120]
[320829754,1711587051656,-452.41236673,0.00054779,120]
[320829755,1711587051665,-500.0,0.00054779,120]
[320829756,1711587051675,-511.75,0.00054779,120]
[320829757,1711587051684,-500.0,0.00054779,120]
[320829758,1711587051693,-1277.09,0.00054779,120]
[320829759,1711587051703,-151.0,0.00054779,120]
[320829760,1711587051712,-869.23,0.00054779,120]
[320829761,1711587051722,-500.0,0.00054779,120]
[320829762,1711587051731,-1061.24,0.00054779,120]
[320829763,1711587051740,-500.0,0.00054779,120]
[320829764,1711587051749,-500.0,0.00054779,120]
[320829765,1711587051759,-500.0,0.00054779,120]
[320829766,1711587051769,-505.60367769,0.00054779,120]
[320829767,1711587051778,-500.0,0.00054779,120]
[320829768,1711587051787,-500.0,0.00054779,120]
[320829769,1711587051796,-500.0,0.00054779,120]
[320829770,1711587051805,-500.0,0.00054779,120]
[320829771,1711587051814,-500.0,0.00054779,120]
[320829772,1711587051824,-500.0,0.00054779,120]
[320829773,1711587051834,-500.0,0.00054779,120]
[320829774,1711587051843,-500.0,0.00054779,120]
[320829775,1711587051852,-500.0,0.00054779,120]
[320829776,1711587051861,-500.0,0.00054779,120]
[320829777,1711587051870,-842.23,0.00054779,120]
[320829778,1711587051881,-500.0,0.00054779,120]
[320829779,1711587051890,-500.0,0.00054779,120]
[320829780,1711587051899,-916.1,0.00054779,120]
[320829781,1711587051908,-1062.99,0.00054779,120]
[320829782,1711587051917,-500.0,0.00054779,120]
[320829783,1711587051927,-500.0,0.00054779,120]
[320829784,1711587051936,-500.0,0.00054779,120]
[320829785,1711587051945,-594.42967749,0.00054779,120]
[320829786,1711587051954,-577.52,0.00054779,120]
[320829787,1711587051964,-1088.51,0.00054779,120]
[320829788,1711587051973,-500.0,0.00054779,120]
[320829789,1711587051982,-500.0,0.00054779,120]
[320829790,1711587051991,-500.0,0.00054779,120]
[320829791,1711587052000,-500.0,0.00054779,120]
[320829792,1711587052010,-500.0,0.00054779,120]
[320829793,1711587052019,-568.93,0.00054779,120]
[320829794,1711587052028,-1580.94,0.00054779,120]
[320829795,1711587052038,-500.0,0.00054779,120]
[320829796,1711587052047,-597.05,0.00054779,120]
[320829797,1711587052057,-500.0,0.00054779,120]
[320829798,1711587052066,-755.1,0.00054779,120]
[320829799,1711587052076,-1847.03,0.00054779,120]
[320829800,1711587052085,-1847.03,0.00054779,120]
[320829801,1711587052095,-500.0,0.00054779,120]
[320829802,1711587052104,-500.0,0.00054779,120]
[320829803,1711587052113,-500.0,0.00054779,120]
[320829804,1711587052122,-873.46,0.00054779,120]
[320829805,1711587052133,-500.0,0.00054779,120]
[320829806,1711587052142,-500.0,0.00054779,120]
[320829807,1711587052151,-771.28,0.00054779,120]
[320829808,1711587052161,-500.0,0.00054779,120]
[320829809,1711587052170,-609.92,0.00054779,120]
[320829810,1711587052179,-2208.61,0.00054779,120]
[320829811,1711587052188,-500.0,0.00054779,120]
[320829812,1711587052197,-500.0,0.00054779,120]
[320829813,1711587052206,-5263.51,0.00054779,120]
[320829814,1711587052216,-500.0,0.00054779,120]
[320829815,1711587052226,-500.0,0.00054779,120]
[320829816,1711587052236,-730.38,0.00054779,2]
[320829817,1711587052247,-631.63,0.00054779,120]
[320829818,1711587052256,-500.0,0.00054779,120]
[320829819,1711587052266,-500.0,0.00054779,120]
[320829820,1711587052275,-500.0,0.00054779,120]
[320829821,1711587052284,-500.0,0.00054779,120]
[320829822,1711587052293,-2914.3,0.00054779,120]
[320829823,1711587052303,-500.0,0.00054779,120]
[320829824,1711587052312,-1021.03,0.00054779,120]
[320829825,1711587052321,-2000.0,0.00054779,120]
[320829826,1711587052330,-677.6,0.00054779,120]
[320829827,1711587052340,-623.586443,0.00054779,120]
[320829828,1711587052349,-623.586443,0.00054779,120]
[320829829,1711587052358,-623.586443,0.00054779,120]
[320829830,1711587052367,-623.586438,0.00054779,120]
[320829831,1711587052377,-500.0,0.00054779,120]
[320829832,1711587052386,-758.59,0.00054779,120]
[320829833,1711587052395,-974.42,0.00054779,120]
[320829834,1711587052405,-567.36,0.00054779,120]
[320829835,1711587052414,-1246.62,0.00054779,120]
[320829836,1711587052423,-1218.62,0.00054779,120]
[320829837,1711587052433,-1002.6,0.00054779,120]
[320829838,1711587052442,-343.1558288,0.00054779,120]
[320829839,1711587052451,-500.0,0.00054779,120]
[320829840,1711587052460,-500.0,0.00054779,120]
[320829841,1711587052469,-647.65,0.00054779,120]
[320829842,1711587052478,-500.0,0.00054779,120]
[320829843,1711587052487,-839.55,0.00054779,120]
[320829844,1711587052496,-151.0,0.00054779,120]
[320829845,1711587052505,-500.0,0.00054779,120]
[320829846,1711587052514,-500.0,0.0005478,30]
[320829847,1711587052523,-2000.0,0.0005478,120]
[320829848,1711587052533,-500.0,0.0005478,120]
[320829849,1711587052541,-647.0,0.0005478,120]
[320829850,1711587052550,-1054.1,0.0005478,120]
[320829851,1711587052559,-542.96,0.0005478,120]
[320829852,1711587052569,-500.0,0.0005478,120]
[320829853,1711587052578,-500.0,0.0005478,120]
[320829854,1711587052587,-504.38,0.0005478,120]
[320829855,1711587052596,-525.87,0.0005478,120]
[320829856,1711587052605,-550.24,0.0005478,120]
[320829857,1711587052614,-500.0,0.0005478,120]
[320829858,1711587052623,-500.0,0.0005478,120]
[320829859,1711587052633,-500.0,0.0005478,120]
[320829860,1711587052643,-500.0,0.0005478,120]
[320829861,1711587052652,-500.0,0.0005478,120]
[320829862,1711587052661,-425.03915104,0.00054781,120]
[320829863,1711587052671,-5727.26,0.00054781,120]
[320829864,1711587052680,-2737.57,0.00054781,120]
[320829865,1711587052689,-281.2579687,0.00054782,2]
[320829866,1711587052699,-3198.5682522,0.00054784,2]
[320829867,1711587052707,-9092.2271338,0.00054784,2]
[320829868,1711587052717,-119335.8792424,0.00054784,2]
[320829869,1711587052726,-839.55,0.00054786,120]
[320829870,1711587052735,-839.55,0.00054786,120]
[320829871,1711587052745,-481.64,0.00054793,2]
[320829872,1711587052755,-200.0,0.00054794,120]
[320829873,1711587052766,-200.0,0.00054794,120]
[320829874,1711587052775,-1000.0,0.00054794,120]
[320829875,1711587052784,-1074.03350109,0.00054794,120]
[320829876,1711587052793,-500.0,0.00054794,120]
[320829877,1711587052803,-500.0,0.00054794,120]
[320829878,1711587052812,-503.44779938,0.00054794,120]
[320829879,1711587052822,-1001.76888115,0.00054794,120]
[320829880,1711587052831,-500.0,0.00054794,60]
[320829881,1711587052841,-506.30650068,0.00054794,120]
[320829882,1711587052850,-666.0,0.00054794,120]
[320829883,1711587052859,-888.0,0.00054794,120]
[320829884,1711587052869,-888.0,0.00054794,120]
[320829885,1711587052878,-1000.0,0.00054794,120]
[320829886,1711587052990,-1000.0,0.00054794,120]
[320829887,1711587053001,-500.0,0.00054794,120]
[320829888,1711587053012,-150.0,0.00054795,120]
[320829889,1711587053023,-246.51,0.000548,14]
[320829890,1711587053033,-230.04,0.000548,30]
[320829891,1711587053043,-620.41818375,0.000548,120]
[320829892,1711587053054,-234.18,0.000548,14]
[320829893,1711587053065,-235.38730866,0.000548,2]
[320829894,1711587053075,-14743.09166021,0.000548,2]
[320829895,1711587053086,-5727.26,0.00054807,120]
[320829896,1711587053097,-2737.57,0.00054807,120]
[320829897,1711587053107,-141227.4864633,0.00054808,2]
[320829898,1711587053118,-154.27077008,0.00054821,60]
[320829899,1711587053129,-2000.0,0.00054861,120]
[320829900,1711587053139,-430.6203844,0.00054897,2]
[320829901,1711587053148,-1847.03,0.00054899,120]
[320829902,1711587053158,-1847.03,0.00054899,120]
[320829903,1711587053168,-1847.03,0.00054899,120]
[320829904,1711587053177,-1847.03,0.00054899,120]
[320829905,1711587053187,-1847.03,0.00054899,120]
[320829906,1711587053197,-5727.26,0.00054899,120]
[320829907,1711587053206,-5727.26,0.00054899,120]
[320829908,1711587053215,-5727.26,0.00054899,120]
[320829909,1711587053229,-5727.26,0.00054899,120]
[320829910,1711587053239,-5763.92085096,0.00054899,30]
[320829911,1711587053249,-189.96013743,0.00054899,11]
[320829912,1711587053259,-478.02899882,0.00054899,2]
[320829913,1711587053270,-2387.40651884,0.00054899,2]
[320829914,1711587053279,-2737.57,0.00054899,120]
[320829915,1711587053289,-2737.57,0.00054899,120]
[320829916,1711587053299,-2737.57,0.00054899,120]
[320829917,1711587053308,-2737.57,0.00054899,120]
[320829918,1711587053318,-839.55,0.00054899,120]
[320829919,1711587053327,-839.55,0.00054899,120]
[320829920,1711587053336,-839.55,0.00054899,120]
[320829921,1711587053345,-839.55,0.00054899,120]
[320829922,1711587053354,-402091.54569879,0.000549,20]
[320829923,1711587053363,-935.98794494,0.000549,120]
[320829924,1711587053372,-66786.36739233,0.000549,20]
[320829925,1711587053652,-14071.3499191,0.000549,20]
[320829926,1711587053664,-4930.1735,0.000549,20]
[320829927,1711587053675,-2039.39728546,0.000549,20]
[320829928,1711587053687,-1459.8714884,0.000549,20]
[320829929,1711587053716,-995.94,0.000549,20]
[320829930,1711587054026,-601.04385,0.000549,20]
[320829931,1711587054043,-643.64,0.000549,20]
[320829932,1711587054054,-75905.64028573,0.000549,20]
[320829933,1711587054135,-500.0,0.00054503,120]
[320829934,1711587054249,-85313.37042091,0.000549,20]
[320829935,1711587054625,-500.0,0.00054777,120]
[320829936,1711587054637,-158.43606489,0.000549,20]
[320829937,1711587054655,-43423.56346099,0.000549,20]
[320829938,1711587054666,-2953.40975479,0.000549,20]
[320829939,1711587054882,-1015.58377368,0.000549,20]
[320829940,1711587054894,-1773.7637948,0.000549,20]
[320829941,1711587055768,-387.89202017,0.00054502,60]
[320829942,1711587055784,-500.0,0.00054503,120]
[320829943,1711587055799,-32.72680129,0.00054503,120]
[320829944,1711587055873,-467.27319871,0.00054503,120]
[320829945,1711587055892,-151.0,0.00054504,120]
[320829946,1711587055909,-151.0,0.00054504,120]
[320829947,1711587055927,-500.0,0.00054504,120]
[320829948,1711587055938,-500.0,0.00054505,120]
[320829949,1711587055947,-151.0,0.00054505,120]
[320829950,1711587055958,-151.0,0.00054505,120]
[320829951,1711587055967,-500.0,0.00054777,120]
[320829952,1711587055977,-500.0,0.00054777,120]
[320829953,1711587055986,-500.0,0.00054779,120]
[320829954,1711587055997,-3563.32680128,0.000549,20]
[320829955,1711587056008,-47269.28260874,0.000549,20]
[320829956,1711587056020,-14126.94633452,0.000549,20]
[320829957,1711587056032,-326.64270529,0.000549,20]
[320829958,1711587056043,-17900.0,0.000549,20]
[320829959,1711587056055,-395.495681,0.000549,20]
[320829960,1711587056070,-151.0,0.00054505,120]
[320829961,1711587056079,-490.93550515,0.000549,20]
[320829962,1711587057253,1337.809923,0.00037,2]
[320829963,1711587065122,172.15377623,0.00037,38]
[320829964,1711587094360,949.45085715,0.00022,2]
[320829965,1711587159350,223.16380902,0.0002211,2]
[320829966,1711587175240,7697.57264551,0.00022,2]
[320829967,1711587227314,3708.77772132,0.0002,2]
[320829968,1711587228040,499.999999,0.000321,2]
[320829969,1711587233794,155.0,0.00040567,4]
[320829970,1711587236172,6653.0,0.0002,2]
[320829971,1711587238444,1646.26960352,0.000181,2]
[320829972,1711587240360,208746.99116044,0.00018,2]
[320829973,1711587240387,177951.0,0.00018,2]
[320829974,1711587240415,66500.0,0.00018,2]
[320829975,1711587240437,171291.0,0.00018,2]
[320829976,1711587240464,17400.0,0.00018,2]
[320829977,1711587240487,17400.0,0.00018,2]
[320829978,1711587240511,17400.0,0.00018,2]
[320829979,1711587240541,913103.36016169,0.00018,2]
[320829981,1711587275339,-1274.41347738,0.0001899,2]
[320829982,1711587275364,-62.58652262,0.0002,2]
[320829986,1711587394922,2529.16700492,0.00015,2]
[320829987,1711587408772,2529.16700492,0.00015,2]
[320829988,1711587423527,19579.69148142,0.00015,2]
[320829989,1711587434753,2529.16700492,0.00012,2]
[320829990,1711587441526,19579.69148142,0.00015,2]
[320829991,1711587454773,2529.16700492,0.00012,2]
[320829992,1711587457537,1312.75081595,0.00015,2]
[320829993,1711587473068,405.03836663,0.00012,2]
[320829994,1711587598817,-3887.41347738,0.0002,2]
[320830029,1711588232177,-473.22086214,0.0003,2]
[320830030,1711588232190,-5491.44369971,0.0003,2]
[320830031,1711588232201,-463.05,0.0003,2]
[320830032,1711588232213,-1800.87150906,0.0003,2]
[320830033,1711588232296,-1075.43,0.0003,2]
[320830034,1711588232356,-3199.88826925,0.0003,2]
[320830035,1711588232477,-6428.14284139,0.0003,2]
[320830036,1711588232488,-71811.39395509,0.0003,2]
[320830037,1711588232498,-158.55486244,0.000404,2]
[320830038,1711588232507,-1483.47729716,0.000405,30]
[320830039,1711588232518,-1846.52270284,0.000405,30]
[320830040,1711588232528,-505.01630497,0.00040567,4]
[320830041,1711588232537,-1215.48962492,0.00040567,4]
[320830043,1711588232549,-675.7908535,0.00040567,4]
[320830045,1711588232562,-169.69490215,0.00045,7]
[320830046,1711588232571,-174.09,0.00046688,2]
[320830047,1711588232580,-164.44,0.000479,120]
[320830048,1711588232589,-250.0,0.00048362,120]
[320830049,1711588232599,-151.032809,0.00048397,65]
[320830051,1711588232608,-250.0,0.0004844,120]
[320830052,1711588232620,-151.032809,0.00048497,66]
[320830054,1711588232629,-150.99,0.00048497,2]
[320830055,1711588232639,-152.3,0.00048511,2]
[320830056,1711588232650,-151.032809,0.00048597,67]
[320830057,1711588232660,-250.0,0.000486,112]
[320830058,1711588232669,-152.3,0.00048669,2]
[320830059,1711588232679,-2159.24,0.00048687,2]
[320830060,1711588232688,-134.65836035,0.00048697,78]
[320830061,1711588232700,-16.37444865,0.00048697,78]
[320830062,1711588232710,-1408.60463151,0.00048791,2]
[320830063,1711588232905,-4584.07600709,0.00048791,2]
[320830086,1711588238080,-3026.27312085,0.00048791,2]
[320830088,1711588238089,-151.032809,0.00048797,79]
[320830090,1711588238099,-323.87989564,0.00048798,20]
[320830092,1711588238108,-183.0,0.000488,2]
[320830098,1711588238302,-152.3,0.00048827,2]
[320830099,1711588238315,-22319.20730016,0.0004888,2]
[320830100,1711588238336,-1741.31701954,0.0004888,2]
[320830101,1711588238348,-1177.43539279,0.0004888,2]
[320830102,1711588238360,-6339.56537436,0.0004888,2]
[320830103,1711588238376,-738.18996079,0.0004888,2]
[320830104,1711588238389,-277.0527081,0.0004888,2]
[320830105,1711588238400,-1059.53492,0.0004888,2]
[320830106,1711588238413,-3096.81184716,0.0004888,2]
[320830107,1711588238428,-37204.26909978,0.0004888,2]
[320830108,1711588238441,-278.47633574,0.0004888,2]
[320830109,1711588238454,-11353.40546924,0.0004888,2]
[320830110,1711588238463,-186.66,0.00048891,120]
[320830111,1711588238473,-78840.20576119,0.00048898,2]
[320830112,1711588238507,-251.60714365,0.00048898,2]
[320830152,1711588240365,-930.00150782,0.00048898,2]
[320830153,1711588240383,-1536.25204684,0.00048898,2]
[320830154,1711588240395,-343.38961965,0.00048898,2]
[320830155,1711588240407,-1419.34142741,0.00048898,2]
[320830156,1711588240519,-12007.58913753,0.00048898,2]
[320830157,1711588240530,-2482.50915718,0.00048898,2]
[320830158,1711588240542,-4019.09127962,0.00048898,2]
[320830159,1711588240554,-315.6,0.00048898,2]
[320830160,1711588240585,-953.20095376,0.00048898,2]
[320830164,1711588243241,-5076.13519208,0.00048898,2]
[320830165,1711588243422,-6962.33,0.00048898,2]
[320830166,1711588243434,-5374.50208832,0.00048898,2]
[320830167,1711588243665,-1244.63900505,0.00048898,2]
[320830238,1711588248064,-5082.74909542,0.00048898,2]
[320830239,1711588248076,-3922.92469378,0.00048898,2]
[320830240,1711588248099,-936.14318588,0.00048898,2]
[320830241,1711588248373,-3566.5434888,0.00048898,2]
[320830242,1711588892305,3923.01476443,0.00040567,30]
[320830258,1711589432509,-250.0,0.00027,3]
[320830259,1711589432519,-243.68515,0.00029,3]
[320830260,1711589432671,-56.31485,0.00029,3]
[320830261,1711589432682,-243.68515,0.000292,2]
[320830275,1711589438319,-14.31485,0.000292,2]
[320830276,1711589438329,-178.90728085,0.0003,4]
[320830277,1711589438339,-350.0,0.00031,3]
[320830278,1711589438349,-400.0,0.00033,3]
[320830279,1711589438359,-450.0,0.00035,3]
[320830280,1711589438368,-500.0,0.00037,3]
[320830281,1711589438378,-172.05273638,0.00040567,2]
[320830282,1711589438387,-165.38,0.00046161,2]
[320830283,1711589438396,-265.81,0.00047512,2]
[320830284,1711589438406,-5219.65513278,0.00047892,4]
[320830285,1711589438470,-21929.74973397,0.00047892,4]
[320830286,1711589438479,-150.0,0.00047892,4]
[320830287,1711589438489,-16694.07,0.00047893,2]
[320830288,1711589438499,-382.76,0.00047914,2]
[320830289,1711589438509,-183.0,0.00047936,2]
[320830290,1711589438518,-164.44,0.0004798,120]
[320830291,1711589438527,-499.99,0.0004798,2]
[320830292,1711589438536,-250.0,0.00047986,120]
[320830293,1711589438547,-1500.0,0.00048011,120]
[320830294,1711589438556,-8053.94,0.00048011,2]
[320830295,1711589438566,-166.38,0.00048039,2]
[320830296,1711589438576,-250.0,0.00048056,112]
[320830297,1711589438586,-250.0,0.00048065,120]
[320830298,1711589438596,-165.38,0.00048425,2]
[320830299,1711589438606,-151.032809,0.00048477,74]
[320830300,1711589438615,-152.3,0.00048484,2]
[320830301,1711589438625,-151.032809,0.00048488,71]
[320830302,1711589438634,-151.032809,0.00048577,73]
[320830303,1711589438643,-151.032809,0.00048588,72]
[320830304,1711589438652,-151.032809,0.00048677,74]
[320830305,1711589438661,-152.3,0.00048678,2]
[320830306,1711589438671,-151.032809,0.00048688,73]
[320830307,1711589438684,-1044.0,0.000487,117]
[320830308,1711589438693,-151.032809,0.00048777,75]
[320830309,1711589438702,-151.032809,0.00048788,74]
[320830310,1711589438711,-152.3,0.00048873,2]
[320830311,1711589438721,-151.032809,0.00048888,75]
[320830313,1711589438731,-336.9305142,0.00048896,120]
[320830327,1711589438866,-187.0041409,0.00048896,4]
[320830329,1711589438875,-735.31029831,0.00048896,2]
[320830331,1711589438885,-1383.80159625,0.00048896,30]
[320830333,1711589438895,-1141.94457681,0.00048896,30]
[320830334,1711589438906,-170.90890067,0.00048896,30]
[320830336,1711589438916,-387.08,0.00048897,15]
[320830337,1711589438928,-235.50320163,0.00048897,30]
[320830339,1711589438937,-11756.47848253,0.00048898,2]
[320830343,1711589438977,-13962.85667475,0.00048898,2]
[320830345,1711589438988,-1195.56239172,0.00048898,2]
[320830348,1711589439000,-24820.5086926,0.00048898,2]
[320830350,1711589439011,-7148.58886319,0.00048898,2]
[320830352,1711589439022,-279.96736045,0.00048898,2]
[320830354,1711589439033,-29679.47506439,0.00048898,2]
[320830356,1711589439045,-492.7045,0.00048898,2]
[320830359,1711589439065,-1223.15203392,0.00048898,2]
[320830362,1711589439077,-1492.573,0.00048898,2]
[320830370,1711589440500,-23860.77428889,0.00048898,2]
[320830371,1711589440510,-3755.18549701,0.00048898,30]
[320830372,1711589440519,-423.408,0.00048985,2]
[320830373,1711589440530,-152.3,0.00049067,2]
[320830374,1711589440539,-157.67,0.00049148,2]
[320830375,1711589440549,-1303.15,0.0004922,120]
[320830376,1711589440559,-736.36680534,0.00049248,2]
[320830377,1711589440568,-152.3,0.00049262,2]
[320830378,1711589440577,-157.67,0.00049393,2]
[320830379,1711589440587,-1000.0,0.00049426,120]
[320830380,1711589440596,-152.3,0.00049456,2]
[320830381,1711589440606,-152.3,0.0004965,2]
[320830382,1711589440615,-152.3,0.00049845,2]
[320830383,1711589440624,-2000.0,0.0005,120]
[320830384,1711589440634,-152.3,0.00050039,2]
[320830385,1711589440644,-152.3,0.00050233,2]
[320830386,1711589440654,-2723.6458087,0.00050275,2]
[320830387,1711589440664,-152.3,0.00050428,2]
[320830388,1711589440673,-152.3,0.00050622,2]
[320830389,1711589440697,-382.76,0.00050654,2]
[320830390,1711589440714,-165.38,0.00050689,2]
[320830391,1711589440733,-151.032809,0.00050698,76]
[320830392,1711589440753,-151.032809,0.00050798,77]
[320830393,1711589440768,-152.3,0.00050816,2]
[320830394,1711589440786,-151.032809,0.00050898,78]
[320830395,1711589440803,-500.0,0.00050958,120]
[320830396,1711589440818,-151.032809,0.00050998,79]
[320830397,1711589440838,-152.3,0.00051011,2]
[320830398,1711589440856,-151.032809,0.00051098,80]
[320830399,1711589440873,-151.032809,0.00051198,81]
[320830400,1711589440893,-10456.1177922,0.00051221,8]
[320830401,1711589440935,-681.62500065,0.00051221,8]
[320830402,1711589440953,-63260.66818452,0.00051221,8]
[320830404,1711589441040,-302.95633877,0.0005,30]
[320830406,1711589441056,-57677.88852543,0.00051221,8]
[320830411,1711589443421,-255.835,0.00051221,8]
[320830413,1711589443643,-16114.67030837,0.00051221,8]
[320830414,1711589443655,-6666.35328557,0.00051221,8]
[320830415,1711589443666,-10479.5096,0.00051221,8]
[320830416,1711589443790,-260.97036804,0.00051221,8]
[320830417,1711589443802,-508.18018841,0.00051221,8]
[320830418,1711589443813,-1091.299998,0.00051221,8]
[320830443,1711589446692,-539.73318341,0.00049999,4]
[320830444,1711589446704,-107.62624583,0.00049999,4]
[320830445,1711589446714,-155.78085468,0.0005122,4]
[320830446,1711589446723,-100578.53158575,0.00051221,8]
[320830447,1711589446733,-165.31419415,0.00051348,14]
[320830448,1711589446742,-2723.6458087,0.00051603,2]
[320830449,1711589446751,-157.77838332,0.00051617,60]
[320830450,1711589446761,-387.08,0.00051636,120]
[320830451,1711589446770,-158.1622171,0.00051663,60]
[320830452,1711589446779,-14968.39012448,0.000518,2]
[320830453,1711589446788,-524.21,0.0005199,2]
[320830454,1711589446797,-159.29318023,0.00052,120]
[320830455,1711589446808,-9053.21402692,0.00052,120]
[320830456,1711589634164,152.85277646,0.00040573,35]
[320830464,1711590631887,-808.69338564,0.00025,2]
[320830465,1711590631897,-250.0,0.00027,3]
[320830466,1711590631907,-300.0,0.00029,3]
[320830467,1711590631916,-365.16180064,0.00040567,4]
[320830468,1711590631927,-179.07766653,0.00040567,2]
[320830469,1711590631938,-3144.10110142,0.00040573,60]
[320830470,1711590631947,-188.79315113,0.000409,2]
[320830471,1711590631956,-1004.0,0.00041,120]
[320830472,1711590631965,-1000.0,0.00043,120]
[320830473,1711590631974,-1000.0,0.00045,120]
[320830474,1711590631983,-150.0,0.00047999,4]
[320830475,1711590631993,-3500.0,0.00048,15]
[320830477,1711590632003,-179.84,0.00048252,2]
[320830479,1711590632011,-870.39480681,0.00048798,10]
[320830481,1711590632020,-999.99,0.00048798,10]
[320830483,1711590632029,-2000.0,0.0005,120]
[320830484,1711590632039,-85233.47182423,0.0005,120]
[320830487,1711590632049,-1000.0,0.0005023,120]
[320830489,1711590632059,-423.77,0.00050265,2]
[320830491,1711590632067,-499.99,0.00050266,2]
[320830493,1711590632076,-179.84,0.00050516,2]
[320830495,1711590632086,-157.3,0.00051,30]
[320830498,1711590632095,-161.54330456,0.00051019,60]
[320830500,1711590632105,-154.7262104,0.00051039,60]
[320830502,1711590632114,-152.78866178,0.00051109,60]
[320830504,1711590632123,-297.67695571,0.00051219,4]
[320830506,1711590632132,-539.02700074,0.00051219,2]
[320830508,1711590632141,-407.7493589,0.00051219,4]
[320830510,1711590632150,-521.28,0.00051219,2]
[320830512,1711590632159,-3551.47,0.00051219,2]
[320830514,1711590632168,-1001.49052387,0.0005122,5]
[320830516,1711590632178,-406.46529905,0.0005122,4]